bitfinex/quotes_SOLUSD_20250129
["timestamp","ask_amount","ask_price","bid_price","bid_amount"]
[1738180212190,27.28046743,233.85,233.75,27.28046743]
[1738180212489,27.28046743,233.87,233.77,27.28046743]
[1738180212664,1.0,233.9,233.65,0.64147984]
[1738180212868,20.03,233.97,233.61,0.64176413]
[1738180212869,1.0,233.84,233.61,0.64176413]
[1738180213192,0.12549,233.73,233.6,0.063]
[1738180213371,1.0,233.71,233.6,0.063]
[1738180213585,20.0,233.73,233.6,0.063]
[1738180213791,1.0,233.73,233.6,0.063]
[1738180213991,1.66361721,233.91,233.6,0.063]
[1738180213992,2.0,233.79,233.6,0.063]
[1738180214199,0.12549,233.71,233.6,0.063]
[1738180214400,27.28046743,233.61,233.6,0.063]
[1738180214597,27.28046743,233.68,233.6,0.063]
[1738180214777,27.28046743,233.74,233.62,0.12549]
[1738180215105,27.28046743,233.88,233.64,0.12549]
[1738180215279,20.0,233.85,233.65,0.64184081]
[1738180215485,20.0,233.85,233.63,23.902374]
[1738180215690,1.0,233.96,233.69,23.776884]
[1738180215880,1.0,233.91,233.66,0.64160087]
[1738180216092,27.28046743,233.71,233.61,27.92224821]
[1738180216294,27.28046743,233.65,233.61,17.118519]
[1738180216503,27.28046743,233.63,233.6,0.063]
[1738180216692,0.25098,233.7,233.6,0.063]
[1738180216898,20.0,233.73,233.6,0.063]
[1738180217109,1.0,233.68,233.6,0.063]
[1738180217316,1.0,233.64,233.6,0.0001]
[1738180217486,1.0,233.6,233.37,4.2827]
[1738180217683,1.0,233.56,233.36,0.063]
[1738180217994,27.28046743,233.39,233.36,0.063]
[1738180218294,27.28046743,233.37,233.36,0.063]
[1738180218520,27.28046743,233.39,233.36,0.063]
[1738180218819,27.40595743,233.37,233.2,0.64283792]
[1738180219111,27.40595743,233.37,233.18,27.28046743]
[1738180219112,27.28046743,233.25,233.18,0.64314151]
[1738180219317,27.28046743,233.31,233.21,27.28046743]
[1738180219498,20.0,233.37,233.14,0.64299199]
[1738180219686,1.0,233.5,233.2,1.0]
[1738180219882,1.0,233.5,233.24,1.0]
[1738180220195,1.0,233.59,233.26,0.37647]
[1738180220515,27.28046743,233.4,233.3,27.28046743]
[1738180220815,27.28046743,233.44,233.34,27.28046743]
[1738180220989,27.28046743,233.4,233.31,0.64276731]
[1738180221188,0.37647,233.46,233.2,0.64278452]
[1738180221394,0.25098,233.42,233.2,0.64278452]
[1738180221606,0.25098,233.38,233.15,0.64301228]
[1738180221810,20.0,233.39,233.16,1.0]
[1738180222016,20.0,233.39,233.19,0.25098]
[1738180222194,1.0,233.47,233.2,0.64298126]
[1738180222394,27.28046743,233.37,233.28,27.28046743]
[1738180222591,27.28046743,233.35,233.24,27.28046743]
[1738180222815,27.28046743,233.3,233.2,0.64290735]
[1738180223018,0.25098,233.5,233.21,0.64306677]
[1738180223190,1.0,233.43,233.21,0.64306677]
[1738180223392,1.0,233.39,233.2,0.64293178]
[1738180223591,20.0,233.42,233.11,5.2898]
[1738180223806,1.0,233.33,233.12,0.64306138]
[1738180224115,27.28046743,233.26,233.15,27.28046743]
[1738180224319,27.28046743,233.34,233.25,27.28046743]
[1738180224524,1.0,233.58,233.31,0.12549]
[1738180224821,1.0,233.62,233.35,20.0]
[1738180225022,20.0,233.61,233.36,0.64254375]
[1738180225223,1.0,233.68,233.42,1.0]
[1738180225416,0.03,233.72,233.48,0.12549]
[1738180225616,0.03,233.72,233.52,1.0]
[1738180225791,27.28046743,233.57,233.54,0.12549]
[1738180225989,27.28046743,233.55,233.45,0.64217269]
[1738180226295,27.28046743,233.51,233.4,27.28046743]
[1738180226502,27.28046743,233.53,233.43,0.12549]
[1738180226690,27.28046743,233.64,233.37,20.0]
[1738180226691,1.0,233.62,233.37,20.0]
[1738180226892,27.28046743,233.49,233.38,4.92732944]
[1738180227119,27.28046743,233.51,233.4,27.28046743]
[1738180227327,1.0,233.49,233.28,6.1949]
[1738180227493,1.0,233.49,233.19,4.2883]
[1738180227494,1.0,233.43,233.19,4.2883]
[1738180227820,0.25098,233.43,233.2,0.64295865]
[1738180228019,20.0,233.41,233.2,0.64295865]
[1738180228195,0.25098,233.4,233.2,0.64295865]
[1738180228393,27.28046743,233.37,233.26,27.28046743]
[1738180228593,74.54046743,233.52,233.21,0.64281779]
[1738180228594,27.28046743,233.31,233.21,0.64281779]
[1738180228801,1.0,233.35,233.15,0.64308629]
[1738180229108,1.0,233.35,233.14,6.572]
[1738180229109,28.28046743,233.4,233.16,0.64331544]
[1738180229291,28.28046743,233.4,233.15,0.64314746]
[1738180229497,1.0,233.37,233.15,0.64314746]
[1738180229808,20.37647,233.36,233.15,0.64314746]
[1738180229997,20.12549,233.36,233.16,0.12549]
[1738180230194,27.28046743,233.3,233.18,27.28046743]
[1738180230410,27.28046743,233.28,233.19,0.64306036]
[1738180230618,27.28046743,233.3,233.2,27.28046743]
[1738180230921,94.81676822,233.52,233.3,0.12549]
[1738180230922,74.54046743,233.52,233.3,0.12549]
[1738180231127,4.927329,233.62,233.34,0.12549]
[1738180231309,1.0,233.62,233.36,0.12549]
[1738180231503,2.0,233.6,233.37,0.64259789]
[1738180231704,2.0,233.6,233.28,20.0]
[1738180231705,38.28523748,233.64,233.38,0.64269336]
[1738180231925,0.03,233.72,233.41,1.0]
[1738180232108,0.03,233.72,233.48,27.28046743]
[1738180232109,27.28046743,233.59,233.48,27.28046743]
[1738180232312,27.28046743,233.49,233.42,0.64227596]
[1738180232634,27.28046743,233.44,233.39,6.4079]
[1738180232803,27.28046743,233.46,233.4,4.92712793]
[1738180233005,27.28046743,233.64,233.42,20.0]
[1738180233211,46.28,233.74,233.44,24.027864]
[1738180233529,47.28,233.74,233.45,0.64226132]
[1738180233699,46.28,233.74,233.45,0.64226132]
[1738180233908,46.28,233.74,233.5,24.027864]
[1738180234106,27.28046743,233.59,233.51,0.6420938]
[1738180234427,27.28046743,233.66,233.57,27.28046743]
[1738180234731,0.03,233.72,233.61,0.12549]
[1738180234932,0.03,233.72,233.62,0.64174283]
[1738180235226,0.03,233.72,233.59,4.281]
[1738180235227,0.03,233.72,233.58,1.0]
[1738180235425,0.03,233.72,233.6,0.64196757]
[1738180235632,0.03,233.72,233.63,1.0]
[1738180235803,0.03,233.72,233.59,27.28046743]
[1738180235804,27.28046743,233.69,233.59,27.28046743]
[1738180236011,27.28046743,233.67,233.58,0.64194635]
[1738180236216,27.28046743,233.65,233.58,0.64205711]
[1738180236421,27.28046743,233.67,233.59,23.902374]
[1738180236618,0.03,233.72,233.61,23.902374]
[1738180236937,0.03,233.72,233.63,4.40559]
[1738180237138,0.03,233.72,233.55,0.64177696]
[1738180237319,0.03,233.72,233.5,4.2826]
[1738180237525,0.03,233.72,233.51,0.64205597]
[1738180237708,27.28046743,233.53,233.47,0.64205597]
[1738180237913,27.28046743,233.51,233.43,0.64236753]
[1738180238151,27.28046743,233.53,233.44,0.64247824]
[1738180238442,27.28046743,233.45,233.39,6.4079]
[1738180238616,27.28046743,233.52,233.34,0.063]
[1738180238617,0.25098,233.48,233.34,0.063]
[1738180238814,0.25098,233.42,233.34,0.063]
[1738180239024,0.12549,233.38,233.34,0.063]
[1738180239247,1.0,233.41,233.19,0.6428703]
[1738180239419,54.56093486,233.28,233.15,6.0516]
[1738180239614,27.28046743,233.28,233.18,27.28046743]
[1738180239815,27.28046743,233.28,233.16,0.6432142]
[1738180240012,46.26,233.38,233.17,0.64318395]
[1738180240326,46.26,233.38,233.22,0.12549]
[1738180240520,46.26,233.38,233.19,1.0]
[1738180240521,46.26,233.38,233.28,4.2866]
[1738180240719,20.0,233.35,233.19,4.93092298]
[1738180240917,27.28046743,233.28,233.17,0.64314662]
[1738180241740,27.28046743,233.28,233.17,0.64320798]
[1738180242042,1.37647,233.24,233.01,6.3685]
[1738180242214,27.28046743,233.14,233.04,4.291]
[1738180242422,27.28046743,233.14,233.07,0.70651712]
[1738180242619,27.28046743,233.2,233.08,4.2903]
[1738180242926,7.06,233.42,233.27,0.063]
[1738180243234,1.0,233.39,233.27,0.063]
[1738180243410,22.63040336,233.48,233.27,0.063]
[1738180243627,0.03,233.53,233.28,0.25098]
[1738180243825,27.28046743,233.44,233.33,27.28046743]
[1738180244026,27.28046743,233.46,233.37,27.28046743]
[1738180244247,27.28046743,233.47,233.37,27.28046743]
[1738180244445,27.28046743,233.39,233.29,27.92315878]
[1738180244660,27.28046743,233.52,233.3,0.64288811]
[1738180244833,1.0,233.48,233.27,0.70567924]
[1738180245031,1.0,233.42,233.27,0.063]
[1738180245246,1.0,233.51,233.27,4.3497]
[1738180245448,1.0,233.49,233.27,0.063]
[1738180245756,27.28046743,233.3,233.27,0.063]
[1738180246063,27.65693743,233.4,233.27,0.063]
[1738180246064,54.56093486,233.28,233.27,0.063]
[1738180246271,54.81191486,233.28,233.27,0.063]
[1738180246436,20.0,233.25,233.07,0.063]
[1738180246958,1.0,233.21,233.07,0.063]
[1738180247273,0.37647,233.22,233.07,0.063]
[1738180247761,20.0,233.25,233.07,0.063]
[1738180247930,27.28046743,233.13,233.07,0.063]
[1738180248443,27.28046743,233.15,233.07,0.063]
[1738180248654,1.0,233.26,233.07,0.063]
[1738180248834,21.0,233.25,233.07,0.063]
[1738180249156,27.28046743,233.18,233.07,0.063]
[1738180249358,27.28046743,233.11,233.07,0.063]
[1738180249530,27.28046743,233.09,233.07,0.063]
[1738180250559,0.37647,233.08,233.07,0.063]
[1738180250867,0.37647,233.04,232.96,0.063]
[1738180251070,27.28046743,233.0,232.96,0.063]
[1738180251268,1.0,233.26,232.99,0.12549]
[1738180251567,1.0,233.26,233.02,27.28046743]
[1738180251769,7.34,233.28,233.02,27.28046743]
[1738180251770,27.28046743,233.13,233.02,27.28046743]
[1738180252062,27.28046743,233.15,233.04,27.28046743]
[1738180252460,27.28046743,233.07,232.98,27.28046743]
[1738180252643,0.37647,233.07,232.96,0.063]
[1738180253179,1.0,233.12,232.96,0.063]
[1738180253468,1.70383344,233.24,232.96,0.063]
[1738180253469,1.0,233.03,232.96,0.063]
[1738180253636,7.0,233.06,232.96,0.063]
[1738180253841,0.37647,232.98,232.96,0.063]
[1738180254139,20.0,233.03,232.96,0.063]
[1738180254343,27.28046743,232.98,232.96,0.063]
[1738180255744,27.28046743,233.01,232.96,4.3554]
[1738180255970,1.0,233.17,232.96,4.3554]
[1738180256143,1.0,233.19,232.96,4.3554]
[1738180256345,1.0,233.09,232.96,0.063]
[1738180256544,0.25098,232.98,232.96,0.063]
[1738180256739,27.28046743,232.97,232.96,0.063]
[1738180257041,27.28046743,233.03,232.96,4.3554]
[1738180257250,27.28046743,233.07,232.96,42.36726743]
[1738180257474,27.28046743,233.07,232.98,27.28046743]
[1738180257648,47.36,233.26,232.99,0.7692168]
[1738180257842,46.36,233.26,233.03,24.027864]
[1738180258042,27.28046743,233.28,233.03,24.027864]
[1738180258043,7.4737,233.41,233.1,20.0]
[1738180258274,1.0,233.46,233.19,1.0]
[1738180258465,1.0,233.48,233.22,0.12549]
[1738180258682,6.96,233.51,233.23,0.64291149]
[1738180258888,27.28046743,233.51,233.42,27.28046743]
[1738180259053,0.03,233.53,233.5,27.28046743]
[1738180259370,0.03,233.72,233.51,6.68838107]
[1738180259684,0.03,233.72,233.54,0.12549]
[1738180259886,0.03,233.72,233.55,0.64202316]
[1738180260184,0.03,233.72,233.59,1.0]
[1738180260388,0.03,233.72,233.67,1.0]
[1738180260591,0.03,233.77,233.71,27.28046743]
[1738180260889,0.03,233.77,233.75,27.28046743]
[1738180261581,0.03,233.77,233.7,0.64162739]
[1738180261792,0.03,233.77,233.66,0.64168583]
[1738180261999,0.03,233.77,233.58,0.64185167]
[1738180262304,0.03,233.77,233.51,8.6955]
[1738180262305,0.25098,233.73,233.53,0.64199872]
[1738180262497,27.28046743,233.66,233.55,27.28046743]
[1738180262659,27.28046743,233.56,233.45,27.28046743]
[1738180262860,1.0,233.72,233.52,27.28046743]
[1738180263060,0.37647,233.64,233.38,3.27435656]
[1738180263277,1.0,233.71,233.43,1.0]
[1738180263471,20.0,233.73,233.46,0.37647]
[1738180263781,20.0,233.73,233.44,0.64233482]
[1738180263782,7.07,233.77,233.49,1.0]
[1738180263971,7.07,233.77,233.54,0.12549]
[1738180264173,27.28046743,233.73,233.63,27.28046743]
[1738180264372,0.03,233.77,233.71,27.28046743]
[1738180264681,0.03,233.77,233.64,0.64196747]
[1738180264867,0.03,233.77,233.61,0.64178218]
[1738180265063,0.03,233.77,233.62,0.64192716]
[1738180265260,0.03,233.77,233.57,0.37647]
[1738180265464,0.03,233.77,233.62,23.902374]
[1738180265664,0.03,233.77,233.68,0.12549]
[1738180265876,0.03,233.77,233.74,27.28046743]
[1738180266070,0.03,233.77,233.76,27.28046743]
[1738180266390,0.03,233.77,233.76,27.40595743]
[1738180266702,0.03,233.86,233.78,0.12549]
[1738180266996,0.03,233.86,233.85,27.40595743]
[1738180267173,0.03,233.97,233.85,51.05735143]
[1738180267490,0.03,233.97,233.95,27.40595743]
[1738180267687,0.03,233.97,233.95,27.28046743]
[1738180268066,0.03,233.97,233.95,27.40595743]
[1738180268387,0.03,233.97,233.95,51.18284143]
[1738180268583,0.03,234.06,234.0,24.027864]
[1738180268890,0.03,234.12,234.06,0.12549]
[1738180269184,0.03,234.12,234.07,0.64065559]
[1738180269389,0.03,234.12,234.08,0.64074034]
[1738180269690,0.03,234.12,234.06,0.64056494]
[1738180269991,0.03,234.12,234.02,1.0]
[1738180270294,0.03,234.21,234.12,0.12549]
[1738180270592,26.84046743,234.24,234.15,0.25098]
[1738180270889,27.28046743,234.18,234.15,0.64035404]
[1738180271064,27.28046743,234.18,234.08,27.28046743]
[1738180271275,27.28046743,234.16,234.06,27.28046743]
[1738180271588,27.28046743,234.14,234.07,0.64070127]
[1738180271775,27.28046743,234.16,234.06,27.28046743]
[1738180271975,27.28046743,234.24,234.13,27.28046743]
[1738180272167,27.28046743,234.26,234.17,27.28046743]
[1738180272371,27.28046743,234.22,234.18,0.64046426]
[1738180272577,27.28046743,234.22,234.11,0.64041614]
[1738180272898,0.37647,234.33,234.06,27.28046743]
[1738180272899,27.28046743,234.18,234.06,27.28046743]
[1738180273069,27.28046743,234.18,234.08,27.28046743]
[1738180273266,27.28046743,234.2,234.09,0.64067564]
[1738180273467,27.28046743,234.22,234.12,27.28046743]
[1738180273700,27.28046743,234.18,234.08,27.28046743]
[1738180273885,27.28046743,234.14,234.04,27.28046743]
[1738180274081,27.28046743,234.14,234.05,0.64079833]
[1738180274283,27.28046743,234.14,234.04,27.28046743]
[1738180274486,27.28046743,234.1,234.0,27.28046743]
[1738180274804,27.28046743,234.18,234.09,0.12549]
[1738180275008,0.03,234.32,234.17,27.28046743]
[1738180275170,0.03,234.32,234.15,0.12549]
[1738180275171,0.03,234.32,234.18,0.64039879]
[1738180275674,27.28046743,234.27,234.18,0.64039879]
[1738180276011,27.28046743,234.29,234.19,27.28046743]
[1738180276185,27.28046743,234.29,234.2,0.64025516]
[1738180276386,0.03,234.32,234.13,1.0]
[1738180276387,27.28046743,234.22,234.13,0.6403264]
[1738180276698,27.28046743,234.16,234.01,0.64053239]
[1738180276883,27.28046743,234.12,234.02,27.28046743]
[1738180277082,27.28046743,234.07,233.97,27.28046743]
[1738180277277,27.28046743,234.03,233.94,1.6185]
[1738180277473,27.28046743,233.99,233.84,0.64110272]
[1738180277685,27.28046743,233.98,233.87,27.28046743]
[1738180277869,27.28046743,234.05,233.94,27.28046743]
[1738180278075,2.0,234.23,233.96,0.12549]
[1738180278281,20.0,234.24,233.98,0.25098]
[1738180278490,0.25098,234.23,233.99,0.64087454]
[1738180278695,20.0,234.24,233.99,0.64087454]
[1738180278900,20.0,234.15,233.97,0.64079772]
[1738180279207,27.28046743,234.07,233.97,27.28046743]
[1738180279376,27.28046743,234.07,233.91,0.64094101]
[1738180279377,27.28046743,234.01,233.91,27.28046743]
[1738180279578,27.28046743,234.01,233.92,0.64117342]
[1738180279776,27.28046743,234.03,233.92,0.64103451]
[1738180280083,27.28046743,234.12,233.98,0.25098]
[1738180280290,2.0,234.3,234.0,0.25098]
[1738180280600,0.12549,234.17,233.93,0.063]
[1738180280909,20.0,234.11,233.93,0.063]
[1738180281097,1.0,234.22,233.96,0.12549]
[1738180281303,27.31046743,234.24,234.01,27.28046743]
[1738180281304,27.28046743,234.13,234.01,27.28046743]
[1738180281604,27.28046743,234.15,234.05,27.28046743]
[1738180281807,27.28046743,234.17,234.07,27.28046743]
[1738180282009,27.28046743,234.13,234.02,0.64065483]
[1738180282208,27.28046743,234.1,234.0,27.28046743]
[1738180282513,27.43595743,234.24,234.07,27.28046743]
[1738180282514,27.28046743,234.16,234.07,27.28046743]
[1738180282719,0.03,234.24,234.11,0.12549]
[1738180282884,27.28046743,234.21,234.12,0.64053828]
[1738180283084,27.28046743,234.21,234.14,0.12549]
[1738180283390,27.28046743,234.21,234.12,0.64050613]
[1738180283591,27.28046743,234.21,234.1,27.28046743]
[1738180283592,27.28046743,234.19,234.1,27.92110269]
[1738180283807,27.28046743,234.17,234.1,0.64063526]
[1738180283980,27.28046743,234.15,234.06,27.92108329]
[1738180284185,27.28046743,234.19,234.08,27.28046743]
[1738180284414,27.28046743,234.19,234.1,27.28046743]
[1738180284712,27.28046743,234.2,234.11,0.64061455]
[1738180284914,27.28046743,234.18,234.08,27.28046743]
[1738180285092,0.03,234.24,234.08,0.64075222]
[1738180285093,27.28046743,234.15,234.08,0.64075222]
[1738180285413,24.027864,234.13,233.95,27.92113919]
[1738180285603,20.0,234.1,233.96,0.64104322]
[1738180285809,1.0,234.22,233.96,0.64104322]
[1738180286000,0.03,234.24,233.98,24.278844]
[1738180286195,0.03,234.24,233.99,0.6407357]
[1738180286399,0.03,234.24,233.99,1.6407357]
[1738180286592,27.28046743,234.21,234.11,0.12549]
[1738180286894,27.28046743,234.19,234.12,0.64051579]
[1738180287098,27.28046743,234.21,234.12,0.64051579]
[1738180287285,0.03,234.24,234.17,0.12549]
[1738180287489,0.03,234.24,234.16,27.28046743]
[1738180287490,27.28046743,234.22,234.13,0.64035272]
[1738180287790,27.28046743,234.2,234.13,0.64054888]
[1738180288117,27.28046743,234.2,234.11,0.64055081]
[1738180288287,27.31046743,234.24,234.14,27.28046743]
[1738180288488,0.03,234.24,234.16,27.40595743]
[1738180288692,27.31046743,234.24,234.16,0.76587226]
[1738180288931,27.28046743,234.2,234.12,0.64045174]
[1738180289106,27.28046743,234.2,234.13,0.12549]
[1738180289426,0.03,234.24,234.15,0.12549]
[1738180289632,0.03,234.24,234.16,0.64041189]
[1738180289841,27.28046743,234.21,234.16,0.64041189]
[1738180290025,27.28046743,234.23,234.16,0.64041189]
[1738180290405,27.28046743,234.23,234.13,0.64046642]
[1738180290630,27.28046743,234.16,234.09,0.64047702]
[1738180290927,27.31046743,234.24,233.98,31.55426743]
[1738180290928,27.28046743,234.1,233.98,31.55426743]
[1738180291109,27.28046743,234.06,233.99,0.64084611]
[1738180291316,27.28046743,234.04,233.96,6.4882]
[1738180291621,27.28046743,234.12,234.01,27.28046743]
[1738180291812,27.28046743,234.06,233.97,0.64071102]
[1738180292018,27.28046743,234.12,233.93,0.063]
[1738180292019,27.28046743,233.98,233.93,0.063]
[1738180292231,27.28046743,234.12,233.94,0.64111781]
[1738180292400,1.0,234.19,233.95,0.25098]
[1738180292601,1.0,234.15,233.96,0.6408123]
[1738180292904,20.0,234.1,233.93,0.063]
[1738180293119,20.0,234.1,233.94,0.64112237]
[1738180293310,1.0,234.21,233.95,4.65087]
[1738180293518,27.28046743,234.12,234.03,0.50196]
[1738180293718,27.28046743,234.2,234.09,0.12549]
[1738180293916,27.28046743,234.16,234.09,0.64053015]
[1738180294129,27.28046743,234.12,234.0,27.28046743]
[1738180294299,27.28046743,234.12,234.02,0.12549]
[1738180294503,27.28046743,234.11,234.03,0.64080728]
[1738180294728,27.28046743,234.17,234.07,0.12549]
[1738180295030,27.31046743,234.24,234.11,0.25098]
[1738180295031,27.28046743,234.19,234.11,0.25098]
[1738180295324,27.28046743,234.19,234.12,4.91168012]
[1738180295727,27.28046743,234.17,234.12,0.64048012]
[1738180295928,27.28046743,234.17,234.06,27.28046743]
[1738180295929,27.28046743,234.13,234.07,0.64055399]
[1738180296154,27.28046743,234.17,234.07,15.59315399]
[1738180296325,27.28046743,234.19,234.11,0.12549]
[1738180296658,27.28046743,234.19,234.12,0.64056193]
[1738180296857,27.28046743,234.13,234.03,4.2729]
[1738180297035,0.03,234.24,234.1,0.12549]
[1738180297226,0.03,234.24,234.13,0.12549]
[1738180297420,0.03,234.24,234.14,4.91125046]
[1738180297643,0.03,234.24,234.14,35.58855046]
[1738180297860,0.03,234.24,234.15,24.278844]
[1738180298022,0.03,234.24,234.21,27.28046743]
[1738180298224,0.03,234.24,234.22,0.6402157]
[1738180298442,0.03,234.24,234.23,0.50196]
[1738180298745,27.28046743,234.36,234.25,27.28046743]
[1738180298922,27.28046743,234.36,234.26,0.64014552]
[1738180299125,27.28046743,234.34,234.23,27.28046743]
[1738180299346,27.31046743,234.32,234.25,4.2689]
[1738180299536,0.03,234.32,234.27,0.12549]
[1738180299735,0.03,234.32,234.31,27.28046743]
[1738180299931,27.31046743,234.32,234.26,0.64008838]
[1738180300132,0.03,234.32,234.27,0.12549]
[1738180300328,0.03,234.32,234.3,27.28046743]
[1738180300635,0.03,234.32,234.21,1.25098]
[1738180300636,0.03,234.32,234.18,4.2702]
[1738180300968,0.03,234.32,234.23,1.0]
[1738180301259,0.03,234.43,234.34,23.902374]
[1738180301424,0.03,234.43,234.37,0.12549]
[1738180301624,0.03,234.43,234.38,0.63974427]
[1738180301849,0.03,234.48,234.42,27.28046743]
[1738180302060,0.03,234.48,234.44,27.28046743]
[1738180302249,0.03,234.48,234.46,27.40595743]
[1738180302562,0.03,234.48,234.42,27.28046743]
[1738180302740,0.03,234.48,234.39,0.63967457]
[1738180302932,0.03,234.48,234.35,0.6397982]
[1738180303341,0.03,234.48,234.36,4.39239]
[1738180303541,0.03,234.48,234.37,0.63989973]
[1738180303751,0.03,234.48,234.36,0.63996571]
[1738180303752,27.28046743,234.43,234.36,0.63996571]
[1738180304261,0.03,234.48,234.43,0.12549]
[1738180304436,0.03,234.48,234.4,27.28046743]
[1738180304961,0.03,234.48,234.36,27.28046743]
[1738180304962,27.28046743,234.46,234.36,27.28046743]
[1738180305256,0.03,234.48,234.3,0.63991851]
[1738180305453,1.03,234.48,234.26,4.2687]
[1738180305656,0.03,234.41,234.27,0.64008478]
[1738180305954,0.03,234.41,234.3,0.12549]
[1738180306253,27.28046743,234.37,234.28,27.28046743]
[1738180306629,27.28046743,234.33,234.24,31.54936743]
[1738180306833,27.28046743,234.33,234.25,0.64022512]
[1738180307029,24.027864,234.33,234.16,2.29628519]
[1738180307255,20.0,234.3,234.13,4.271]
[1738180307463,1.0,234.4,234.15,24.153354]
[1738180307645,0.03,234.41,234.22,0.25098]
[1738180307836,0.03,234.41,234.26,0.12549]
[1738180308159,0.03,234.41,234.29,27.28046743]
[1738180308160,27.28046743,234.39,234.29,27.28046743]
[1738180308349,27.28046743,234.37,234.3,0.64015548]
[1738180308544,0.03,234.41,234.34,0.12549]
[1738180308746,0.03,234.41,234.37,27.28046743]
[1738180309058,0.03,234.41,234.3,0.63992501]
[1738180309255,27.28046743,234.39,234.3,27.28046743]
[1738180309460,0.03,234.41,234.26,27.28046743]
[1738180309653,27.28046743,234.38,234.28,27.40595743]
[1738180309951,27.28046743,234.38,234.25,0.12549]
[1738180309952,27.28046743,234.34,234.24,27.92051963]
[1738180310165,27.28046743,234.38,234.26,27.28046743]
[1738180310361,27.28046743,234.3,234.23,0.64012635]
[1738180310570,27.28046743,234.3,234.21,0.640212]
[1738180310740,0.03,234.41,234.22,24.278844]
[1738180310947,0.03,234.41,234.32,27.28046743]
[1738180311250,0.03,234.41,234.39,0.12549]
[1738180311452,0.03,234.41,234.4,28.04578327]
[1738180311752,0.03,234.41,234.34,0.63973379]
[1738180311960,0.03,234.41,234.35,27.28046743]
[1738180312144,0.03,234.41,234.39,0.12549]
[1738180312335,0.03,234.48,234.41,0.25098]
[1738180312537,0.03,234.48,234.42,0.63963709]
[1738180312763,27.28046743,234.46,234.38,0.63977107]
[1738180312963,27.31046743,234.48,234.39,0.25098]
[1738180313142,0.03,234.48,234.47,0.12549]
[1738180313338,0.03,234.48,234.47,0.63956662]
[1738180313536,0.03,234.48,234.42,10.6644]
[1738180313537,0.03,234.48,234.43,0.63954861]
[1738180313756,0.03,234.48,234.4,4.2661]
[1738180313936,0.03,234.48,234.41,0.63974905]
[1738180314134,0.03,234.48,234.46,0.12549]
[1738180314337,0.03,234.48,234.47,0.63954348]
[1738180314567,27.31046743,234.48,234.41,0.63966481]
[1738180314767,27.31046743,234.48,234.42,0.12549]
[1738180314944,0.03,234.48,234.42,0.12549]
[1738180315270,27.28046743,234.44,234.36,4.2668]
[1738180315434,27.28046743,234.42,234.37,0.6398744]
[1738180315633,27.28046743,234.42,234.32,0.63988959]
[1738180315859,27.28046743,234.38,234.32,0.63988959]
[1738180316067,27.28046743,234.38,234.21,27.28046743]
[1738180316068,27.28046743,234.34,234.21,27.28046743]
[1738180316238,27.28046743,234.27,234.22,0.64025881]
[1738180316442,27.28046743,234.27,234.17,27.92087217]
[1738180316657,2.0,234.39,234.21,27.28046743]
[1738180316859,1.0,234.42,234.22,0.64034561]
[1738180317059,27.28046743,234.28,234.18,0.76576874]
[1738180317345,27.28046743,234.22,234.15,0.063]
[1738180317560,27.28046743,234.18,234.15,0.063]
[1738180317754,27.28046743,234.16,234.15,0.063]
[1738180317950,1.12549,234.29,234.15,0.063]
[1738180317951,1.0,234.41,234.15,0.063]
[1738180318264,1.0,234.44,234.16,1.14223356]
[1738180318648,2.0,234.37,234.16,0.76576356]
[1738180318847,20.0,234.33,234.15,0.063]
[1738180319067,27.28046743,234.32,234.21,27.28046743]
[1738180319271,27.28046743,234.34,234.23,27.28046743]
[1738180319447,27.28046743,234.3,234.19,27.28046743]
[1738180319649,27.28046743,234.3,234.2,0.64039279]
[1738180319852,27.28046743,234.32,234.23,27.28046743]
[1738180320061,27.28046743,234.28,234.16,27.28046743]
[1738180320264,27.28046743,234.3,234.2,27.28046743]